[Event "*** Titled Tuesday 3|2 Blitz"]
[Site "Chess.com"]
[Date "2016.08.02"]
[Round "7"]
[White "petrpalachev"]
[Black "Usurpov"]
[Result "1/2-1/2"]
[WhiteElo "2420"]
[BlackElo "2337"]
[TimeControl "180+2"]
[EndTime "12:35:51 PDT"]
[Termination "Game drawn by stalemate"]

1. d4 {[%clk 0:03:01.9]} 1... Nf6 {[%clk 0:02:57.7]} 2. c4 {[%clk 0:03:01.8]}
2... g6 {[%clk 0:02:58.7]} 3. Nc3 {[%clk 0:03:02.6]} 3... d5 {[%clk 0:02:57.6]}
4. Nf3 {[%clk 0:03:02.8]} 4... Bg7 {[%clk 0:02:58.2]} 5. Bf4 {[%clk 0:03:03.4]}
5... O-O {[%clk 0:02:54.5]} 6. Rc1 {[%clk 0:03:02.6]} 6... dxc4 {[%clk
0:02:47.7]} 7. e4 {[%clk 0:02:58.8]} 7... Bg4 {[%clk 0:02:46.6]} 8. Bxc4 {[%clk
0:02:56.1]} 8... Nh5 {[%clk 0:02:39.3]} 9. Be3 {[%clk 0:02:54.5]} 9... Bxf3
{[%clk 0:02:36.9]} 10. gxf3 {[%clk 0:02:56.4]} 10... e5 {[%clk 0:02:21.9]} 11.
d5 {[%clk 0:02:50.5]} 11... c6 {[%clk 0:01:50.5]} 12. Qd2 {[%clk 0:02:45.7]}
12... cxd5 {[%clk 0:01:39.7]} 13. Bxd5 {[%clk 0:02:44.8]} 13... Nc6 {[%clk
0:01:38.7]} 14. Bxc6 {[%clk 0:02:45.7]} 14... bxc6 {[%clk 0:01:38.9]} 15. Qxd8
{[%clk 0:02:47]} 15... Rfxd8 {[%clk 0:01:40.2]} 16. Ke2 {[%clk 0:02:48]} 16...
Bf8 {[%clk 0:01:28.4]} 17. Na4 {[%clk 0:02:47]} 17... Rac8 {[%clk 0:01:12.5]}
18. Rhd1 {[%clk 0:02:39.6]} 18... Rxd1 {[%clk 0:01:07.1]} 19. Kxd1 {[%clk
0:02:40.8]} 19... f6 {[%clk 0:00:57.1]} 20. b3 {[%clk 0:02:41.2]} 20... Rc7
{[%clk 0:00:57.9]} 21. Rc4 {[%clk 0:02:35.7]} 21... Kf7 {[%clk 0:00:56.4]} 22.
Nc5 {[%clk 0:02:33.1]} 22... Ng7 {[%clk 0:00:51.7]} 23. Nd3 {[%clk 0:02:27.1]}
23... Ne6 {[%clk 0:00:46.8]} 24. Kc2 {[%clk 0:02:25.2]} 24... c5 {[%clk
0:00:39.3]} 25. Nb2 {[%clk 0:02:14.1]} 25... Bd6 {[%clk 0:00:38.8]} 26. Na4
{[%clk 0:02:14.8]} 26... f5 {[%clk 0:00:37.5]} 27. b4 {[%clk 0:01:48.8]} 27...
cxb4 {[%clk 0:00:20.6]} 28. Rxc7+ {[%clk 0:01:50.7]} 28... Bxc7 {[%clk
0:00:17.3]} 29. exf5 {[%clk 0:01:52.6]} 29... gxf5 {[%clk 0:00:18]} 30. Bxa7
{[%clk 0:01:54.5]} 30... Ng5 {[%clk 0:00:18.2]} 31. Bc5 {[%clk 0:01:35.6]} 31...
Nxf3 {[%clk 0:00:16.7]} 32. Bxb4 {[%clk 0:01:36.9]} 32... Nxh2 {[%clk
0:00:17.6]} 33. Nc3 {[%clk 0:01:35.7]} 33... Ng4 {[%clk 0:00:15.9]} 34. Nd5
{[%clk 0:01:31.8]} 34... Bb8 {[%clk 0:00:15.8]} 35. Bc5 {[%clk 0:01:31.6]} 35...
h5 {[%clk 0:00:14.7]} 36. Nc3 {[%clk 0:01:19.9]} 36... h4 {[%clk 0:00:15.3]} 37.
Ne2 {[%clk 0:01:21.4]} 37... h3 {[%clk 0:00:16.3]} 38. Ng3 {[%clk 0:01:22.3]}
38... e4 {[%clk 0:00:16.8]} 39. Nh1 {[%clk 0:01:21.3]} 39... Ke6 {[%clk
0:00:16.9]} 40. a4 {[%clk 0:01:22.3]} 40... Kd5 {[%clk 0:00:18]} 41. Bb6 {[%clk
0:01:14.2]} 41... Kc6 {[%clk 0:00:18.6]} 42. a5 {[%clk 0:01:15.7]} 42... Bc7
{[%clk 0:00:18.9]} 43. Bxc7 {[%clk 0:01:12.7]} 43... Kxc7 {[%clk 0:00:20.8]} 44.
Kc3 {[%clk 0:01:14.1]} 44... f4 {[%clk 0:00:11]} 45. Kd4 {[%clk 0:01:07.7]}
45... e3 {[%clk 0:00:09.1]} 46. fxe3 {[%clk 0:01:08.9]} 46... fxe3 {[%clk
0:00:10.4]} 47. Kd3 {[%clk 0:01:08.8]} 47... Kc6 {[%clk 0:00:11.6]} 48. Ke2
{[%clk 0:01:09.6]} 48... Kb5 {[%clk 0:00:12.9]} 49. Kf3 {[%clk 0:01:10.8]} 49...
Kxa5 {[%clk 0:00:14.2]} 50. Ng3 {[%clk 0:01:09.2]} 50... h2 {[%clk 0:00:15]} 51.
Kg2 {[%clk 0:00:59.9]} 51... Kb4 {[%clk 0:00:15.9]} 52. Ne2 {[%clk 0:01:00]}
52... Kc4 {[%clk 0:00:16.4]} 53. Nf4 {[%clk 0:01:01.1]} 53... Kc3 {[%clk
0:00:17]} 54. Ne2+ {[%clk 0:01:01.8]} 54... Kd2 {[%clk 0:00:18.1]} 55. Nf4
{[%clk 0:01:03.5]} 55... e2 {[%clk 0:00:19.4]} 56. Nxe2 {[%clk 0:01:05]} 56...
Kxe2 {[%clk 0:00:21.3]} 57. Kh1 {[%clk 0:01:06.9]} 57... Ke3 {[%clk 0:00:22.4]}
58. Kg2 {[%clk 0:01:08.1]} 58... Kf4 {[%clk 0:00:23.7]} 59. Kh1 {[%clk
0:01:09.6]} 59... Kg5 {[%clk 0:00:24.7]} 60. Kg2 {[%clk 0:01:11]} 60... Kh4
{[%clk 0:00:26]} 61. Kh1 {[%clk 0:01:12.6]} 61... Kg5 {[%clk 0:00:25.7]} 62. Kg2
{[%clk 0:01:13.8]} 62... Kf4 {[%clk 0:00:27]} 63. Kh1 {[%clk 0:01:15.3]} 63...
Ke4 {[%clk 0:00:28.6]} 64. Kg2 {[%clk 0:01:16.9]} 64... Kd3 {[%clk 0:00:30.1]}
65. Kh1 {[%clk 0:01:18.5]} 65... Ke2 {[%clk 0:00:31.4]} 66. Kg2 {[%clk
0:01:20.1]} 66... Ke1 {[%clk 0:00:32.1]} 67. Kh1 {[%clk 0:01:22]} 67... Kf2
{[%clk 0:00:18.7]} 1/2-1/2

[Event "*** Titled Tuesday 3|2 Blitz"]
[Site "Chess.com"]
[Date "2016.08.02"]
[Round "7"]
[White "1stSecond"]
[Black "Gabrielian_Artur"]
[Result "0-1"]
[WhiteElo "2534"]
[BlackElo "2560"]
[TimeControl "180+2"]
[EndTime "12:36:19 PDT"]
[Termination "Gabrielian_Artur won by resignation"]

1. d4 {[%clk 0:03:01.9]} 1... Nf6 {[%clk 0:03:00.6]} 2. c4 {[%clk 0:03:03.3]}
2... c5 {[%clk 0:03:01.3]} 3. d5 {[%clk 0:03:04.4]} 3... e6 {[%clk 0:03:02.4]}
4. Nc3 {[%clk 0:03:06]} 4... exd5 {[%clk 0:03:03.6]} 5. cxd5 {[%clk 0:03:07.9]}
5... d6 {[%clk 0:03:05.1]} 6. Nf3 {[%clk 0:03:08.5]} 6... g6 {[%clk 0:03:06.4]}
7. Nd2 {[%clk 0:03:10]} 7... Nbd7 {[%clk 0:03:06.8]} 8. e4 {[%clk 0:03:11.6]}
8... Bg7 {[%clk 0:03:07.1]} 9. Be2 {[%clk 0:03:13.3]} 9... O-O {[%clk
0:03:07.9]} 10. O-O {[%clk 0:03:14.7]} 10... Re8 {[%clk 0:03:08.9]} 11. Qc2
{[%clk 0:03:13.8]} 11... Ne5 {[%clk 0:03:08.3]} 12. h3 {[%clk 0:03:12.6]} 12...
g5 {[%clk 0:03:06.2]} 13. a4 {[%clk 0:03:03.3]} 13... a6 {[%clk 0:03:04.1]} 14.
f4 {[%clk 0:03:03.7]} 14... gxf4 {[%clk 0:03:04.6]} 15. Rxf4 {[%clk 0:03:05.6]}
15... Ng6 {[%clk 0:03:05.8]} 16. Rf1 {[%clk 0:03:05.4]} 16... Nd7 {[%clk
0:03:04.8]} 17. Nc4 {[%clk 0:03:04.2]} 17... Nde5 {[%clk 0:03:02.2]} 18. Ne3
{[%clk 0:03:05.6]} 18... Nh4 {[%clk 0:02:22.1]} 19. Nf5 {[%clk 0:02:47]} 19...
Nxf5 {[%clk 0:02:17.6]} 20. exf5 {[%clk 0:02:48.9]} 20... c4 {[%clk 0:02:16.8]}
21. Ne4 {[%clk 0:02:42.5]} 21... Nd7 {[%clk 0:02:09]} 22. Rf4 {[%clk 0:01:37.7]}
22... Nf6 {[%clk 0:02:02.9]} 23. Bxc4 {[%clk 0:01:16.7]} 23... Rxe4 {[%clk
0:01:46.4]} 24. Rxe4 {[%clk 0:01:17.5]} 24... Bxf5 {[%clk 0:01:47.5]} 25. Re8+
{[%clk 0:01:16.8]} 25... Qxe8 {[%clk 0:01:40.5]} 26. Qxf5 {[%clk 0:01:18.7]}
26... Rc8 {[%clk 0:01:34.2]} 27. b3 {[%clk 0:00:31.7]} 27... b5 {[%clk
0:01:28.4]} 28. axb5 {[%clk 0:00:32.5]} 28... axb5 {[%clk 0:01:29.7]} 29. Bxb5
{[%clk 0:00:20.6]} 29... Rxc1+ {[%clk 0:01:28.4]} 30. Rxc1 {[%clk 0:00:21]}
30... Qe3+ {[%clk 0:01:29.3]} 31. Kh2 {[%clk 0:00:19.8]} 31... Qxc1 {[%clk
0:01:30.2]} 32. Bd3 {[%clk 0:00:19.4]} 32... h5 {[%clk 0:01:16.8]} 33. b4 {[%clk
0:00:19.7]} 33... Qe3 {[%clk 0:01:03.3]} 34. b5 {[%clk 0:00:20.1]} 34... h4
{[%clk 0:00:56.5]} 35. Bc2 {[%clk 0:00:13.1]} 35... Nxd5 {[%clk 0:00:48.3]} 36.
Qc8+ {[%clk 0:00:10.6]} 36... Bf8 {[%clk 0:00:48.1]} 37. Qg4+ {[%clk 0:00:12.3]}
37... Bg7 {[%clk 0:00:43.2]} 38. Qc8+ {[%clk 0:00:13]} 38... Bf8 {[%clk
0:00:44.1]} 39. Qg4+ {[%clk 0:00:14.6]} 39... Kh8 {[%clk 0:00:42.5]} 40. Qh5+
{[%clk 0:00:16]} 40... Bh6 {[%clk 0:00:42.6]} 41. Qxh4 {[%clk 0:00:08.6]} 41...
Qe5+ {[%clk 0:00:17.6]} 42. Kh1 {[%clk 0:00:08.6]} 42... Kg7 {[%clk 0:00:17.7]}
43. Qg4+ {[%clk 0:00:09.6]} 43... Kf6 {[%clk 0:00:18.8]} 44. h4 {[%clk
0:00:10.9]} 44... Qa1+ {[%clk 0:00:19.1]} 45. Kh2 {[%clk 0:00:11.8]} 45... Qe5+
{[%clk 0:00:20.1]} 46. g3 {[%clk 0:00:13.5]} 46... Ne3 {[%clk 0:00:20.6]} 47.
Qf3+ {[%clk 0:00:14]} 47... Kg7 {[%clk 0:00:22]} 48. Be4 {[%clk 0:00:15.6]}
48... f5 {[%clk 0:00:22.5]} 49. Bd3 {[%clk 0:00:17]} 49... Qb2+ {[%clk
0:00:23.3]} 50. Kh3 {[%clk 0:00:17.2]} 50... Ng4 {[%clk 0:00:24.6]} 51. Bxf5
{[%clk 0:00:16.6]} 51... Nf2+ {[%clk 0:00:25.7]} 52. Kg2 {[%clk 0:00:18.3]}
52... Nd3+ {[%clk 0:00:15.6]} 53. Kh3 {[%clk 0:00:19.6]} 53... Ne5 {[%clk
0:00:16.2]} 54. Qb7+ {[%clk 0:00:20.7]} 54... Kf6 {[%clk 0:00:17.1]} 55. Qe4
{[%clk 0:00:21]} 55... Qxb5 {[%clk 0:00:16.1]} 56. Bc8 {[%clk 0:00:20.3]} 56...
Qf1+ {[%clk 0:00:16.9]} 57. Kh2 {[%clk 0:00:20.2]} 57... Nf3+ {[%clk 0:00:17.6]}
58. Qxf3+ {[%clk 0:00:17.6]} 58... Qxf3 {[%clk 0:00:18.8]} 0-1

[Event "*** Titled Tuesday 3|2 Blitz"]
[Site "Chess.com"]
[Date "2016.08.02"]
[Round "7"]
[White "dretch"]
[Black "Alexander_Moskalenko"]
[Result "0-1"]
[WhiteElo "2604"]
[BlackElo "2637"]
[TimeControl "180+2"]
[EndTime "12:36:25 PDT"]
[Termination "Alexander_Moskalenko won by resignation"]

1. d4 {[%clk 0:03:01.9]} 1... d5 {[%clk 0:03:01.5]} 2. c4 {[%clk 0:03:03.1]}
2... c6 {[%clk 0:03:03.4]} 3. Nf3 {[%clk 0:03:03.5]} 3... Nf6 {[%clk 0:03:04.9]}
4. Nc3 {[%clk 0:03:05]} 4... dxc4 {[%clk 0:03:06.5]} 5. a4 {[%clk 0:03:06]} 5...
c5 {[%clk 0:03:08.1]} 6. d5 {[%clk 0:03:05.9]} 6... Bf5 {[%clk 0:03:09.2]} 7.
Bf4 {[%clk 0:02:47.6]} 7... h6 {[%clk 0:02:57]} 8. e4 {[%clk 0:02:33.8]} 8...
Bxe4 {[%clk 0:02:50.3]} 9. Bxc4 {[%clk 0:02:30.9]} 9... Nbd7 {[%clk 0:02:51.5]}
10. Nb5 {[%clk 0:02:24.5]} 10... Rc8 {[%clk 0:02:50.3]} 11. O-O {[%clk
0:02:03.8]} 11... Nb6 {[%clk 0:02:40.1]} 12. Ba2 {[%clk 0:02:03.2]} 12... a6
{[%clk 0:02:37.1]} 13. Nc3 {[%clk 0:02:01.2]} 13... Bxd5 {[%clk 0:02:38.3]} 14.
Nxd5 {[%clk 0:01:52.2]} 14... Nbxd5 {[%clk 0:02:40.2]} 15. a5 {[%clk 0:01:40.6]}
15... e6 {[%clk 0:02:35.5]} 16. Ne5 {[%clk 0:01:39]} 16... Be7 {[%clk
0:02:27.7]} 17. Qa4+ {[%clk 0:01:38.4]} 17... Kf8 {[%clk 0:02:29.4]} 18. Rfd1
{[%clk 0:01:34.9]} 18... g6 {[%clk 0:02:26.2]} 19. Qa3 {[%clk 0:01:20.6]} 19...
Kg7 {[%clk 0:02:20.9]} 20. Qf3 {[%clk 0:01:07.2]} 20... Rf8 {[%clk 0:02:08.6]}
21. Bb1 {[%clk 0:00:58.7]} 21... Bd6 {[%clk 0:01:59.7]} 22. Bg3 {[%clk
0:00:50.7]} 22... Qc7 {[%clk 0:01:56.1]} 23. Re1 {[%clk 0:00:44.6]} 23... h5
{[%clk 0:01:57.2]} 24. Ra4 {[%clk 0:00:40.4]} 24... Nd7 {[%clk 0:01:49.9]} 25.
Nxd7 {[%clk 0:00:18.5]} 25... Qxd7 {[%clk 0:01:51.1]} 26. Rh4 {[%clk 0:00:18.5]}
26... Bxg3 {[%clk 0:01:51.6]} 27. hxg3 {[%clk 0:00:19.6]} 27... c4 {[%clk
0:01:38.4]} 28. g4 {[%clk 0:00:13.9]} 28... Qd8 {[%clk 0:01:39.6]} 29. Qh3
{[%clk 0:00:13.1]} 29... Qxa5 {[%clk 0:01:35.5]} 30. Rf1 {[%clk 0:00:12.8]}
30... Nf4 {[%clk 0:01:36.3]} 31. Qf3 {[%clk 0:00:12.6]} 31... Qe5 {[%clk
0:01:04.6]} 32. g3 {[%clk 0:00:09.1]} 32... Ne2+ {[%clk 0:01:05.8]} 33. Kg2
{[%clk 0:00:09.8]} 33... Nd4 {[%clk 0:00:53.2]} 34. Qd1 {[%clk 0:00:08.9]} 34...
hxg4 {[%clk 0:00:45.5]} 35. Qxg4 {[%clk 0:00:09.3]} 35... Nf5 {[%clk 0:00:44]}
36. Rhh1 {[%clk 0:00:07.8]} 36... b5 {[%clk 0:00:38]} 37. Re1 {[%clk 0:00:08.7]}
37... Qf6 {[%clk 0:00:26]} 38. Qf4 {[%clk 0:00:02.8]} 38... Rh8 {[%clk
0:00:27.1]} 39. Qf3 {[%clk 0:00:02.8]} 39... Rxh1 {[%clk 0:00:27.4]} 40. Rxh1
{[%clk 0:00:04.7]} 40... Rh8 {[%clk 0:00:28.5]} 41. Re1 {[%clk 0:00:05.9]} 41...
Qxb2 {[%clk 0:00:27.5]} 42. Bxf5 {[%clk 0:00:07.1]} 42... gxf5 {[%clk 0:00:27]}
43. Qf4 {[%clk 0:00:08]} 43... Qf6 {[%clk 0:00:25.4]} 44. Rc1 {[%clk 0:00:09.1]}
44... Qh6 {[%clk 0:00:26.2]} 45. Qd4+ {[%clk 0:00:09.9]} 45... Kg6 {[%clk
0:00:26.2]} 46. Rd1 {[%clk 0:00:09.5]} 46... Qh3+ {[%clk 0:00:26.7]} 47. Kf3
{[%clk 0:00:10.8]} 47... Qh5+ {[%clk 0:00:28.3]} 48. Ke3 {[%clk 0:00:11.3]}
48... Qg5+ {[%clk 0:00:28.5]} 49. Kf3 {[%clk 0:00:10.9]} 49... Qg4+ {[%clk
0:00:29.1]} 50. Qxg4+ {[%clk 0:00:12.3]} 50... fxg4+ {[%clk 0:00:31]} 51. Kxg4
{[%clk 0:00:14]} 51... c3 {[%clk 0:00:31.9]} 52. Kf4 {[%clk 0:00:14.6]} 52... b4
{[%clk 0:00:33]} 53. Rc1 {[%clk 0:00:15]} 53... a5 {[%clk 0:00:33]} 54. Ke4
{[%clk 0:00:15.7]} 54... Rd8 {[%clk 0:00:34.7]} 55. g4 {[%clk 0:00:15.8]} 55...
a4 {[%clk 0:00:35.3]} 56. f4 {[%clk 0:00:16.4]} 56... f5+ {[%clk 0:00:35.7]} 57.
Ke5 {[%clk 0:00:16.7]} 57... a3 {[%clk 0:00:34.8]} 58. g5 {[%clk 0:00:16.2]}
58... a2 {[%clk 0:00:35.4]} 59. Rh1 {[%clk 0:00:16.7]} 59... c2 {[%clk
0:00:31.6]} 60. Kxe6 {[%clk 0:00:16.7]} 60... b3 {[%clk 0:00:31.8]} 61. Ke7
{[%clk 0:00:16.9]} 61... b2 {[%clk 0:00:31.6]} 62. Rh6+ {[%clk 0:00:14.5]} 62...
Kg7 {[%clk 0:00:32.4]} 63. Kxd8 {[%clk 0:00:14.8]} 63... c1=Q {[%clk 0:00:33.7]}
64. Rd6 {[%clk 0:00:13.3]} 64... Qxf4 {[%clk 0:00:30.9]} 65. Rd7+ {[%clk
0:00:12.9]} 65... Kg6 {[%clk 0:00:31.9]} 0-1

[Event "*** Titled Tuesday 3|2 Blitz"]
[Site "Chess.com"]
[Date "2016.08.02"]
[Round "7"]
[White "Balandel"]
[Black "NTBT_DHS"]
[Result "1/2-1/2"]
[WhiteElo "2340"]
[BlackElo "2461"]
[TimeControl "180+2"]
[EndTime "12:36:26 PDT"]
[Termination "Game drawn by repetition"]

1. e4 {[%clk 0:03:00.3]} 1... g6 {[%clk 0:03:00.5]} 2. d4 {[%clk 0:03:00.5]}
2... Bg7 {[%clk 0:03:01.9]} 3. Nc3 {[%clk 0:03:02.1]} 3... d6 {[%clk 0:03:03.4]}
4. Be2 {[%clk 0:03:02.9]} 4... a6 {[%clk 0:03:04.6]} 5. h4 {[%clk 0:03:03.7]}
5... Nc6 {[%clk 0:03:01.5]} 6. Be3 {[%clk 0:03:03.6]} 6... e5 {[%clk 0:03:01.5]}
7. d5 {[%clk 0:03:04.3]} 7... Nd4 {[%clk 0:03:02.9]} 8. h5 {[%clk 0:03:03.8]}
8... f5 {[%clk 0:03:01.9]} 9. f3 {[%clk 0:03:02.7]} 9... g5 {[%clk 0:02:54.5]}
10. exf5 {[%clk 0:02:49.7]} 10... Bxf5 {[%clk 0:02:53.7]} 11. Bd3 {[%clk
0:02:49.5]} 11... Nh6 {[%clk 0:02:52.5]} 12. Nge2 {[%clk 0:02:45]} 12... O-O
{[%clk 0:02:46.2]} 13. Qd2 {[%clk 0:02:38.8]} 13... Nf7 {[%clk 0:02:17.1]} 14.
Nxd4 {[%clk 0:02:23.1]} 14... exd4 {[%clk 0:02:17.5]} 15. Bxf5 {[%clk
0:02:21.5]} 15... dxc3 {[%clk 0:02:08.1]} 16. bxc3 {[%clk 0:02:20]} 16... Qf6
{[%clk 0:02:09.1]} 17. Be6 {[%clk 0:02:10]} 17... Qxc3 {[%clk 0:01:58.1]} 18.
Rb1 {[%clk 0:02:07.2]} 18... Qe5 {[%clk 0:01:38]} 19. Kf2 {[%clk 0:01:46.1]}
19... b6 {[%clk 0:01:28.4]} 20. Bxg5 {[%clk 0:01:42.3]} 20... Kh8 {[%clk
0:01:29.7]} 21. Bf4 {[%clk 0:01:28.5]} 21... Qf6 {[%clk 0:01:03.9]} 22. Rbe1
{[%clk 0:00:58]} 22... Bh6 {[%clk 0:00:53.4]} 23. Bxh6 {[%clk 0:00:56.7]} 23...
Nxh6 {[%clk 0:00:54.7]} 24. Re4 {[%clk 0:00:54]} 24... Rae8 {[%clk 0:00:46.1]}
25. Rhe1 {[%clk 0:00:48.1]} 25... Re7 {[%clk 0:00:47.5]} 26. a4 {[%clk
0:00:35.9]} 26... Rg7 {[%clk 0:00:46.3]} 27. Kf1 {[%clk 0:00:26.4]} 27... a5
{[%clk 0:00:30.2]} 28. Qd4 {[%clk 0:00:26.4]} 28... Qg5 {[%clk 0:00:30.8]} 29.
R1e2 {[%clk 0:00:22.9]} 29... Qxh5 {[%clk 0:00:31.2]} 30. Rh4 {[%clk 0:00:20.2]}
30... Qg5 {[%clk 0:00:24.6]} 31. c4 {[%clk 0:00:15.4]} 31... Qc1+ {[%clk
0:00:18.4]} 32. Kf2 {[%clk 0:00:15.1]} 32... Qg5 {[%clk 0:00:20.1]} 33. Kf1
{[%clk 0:00:14.5]} 33... Rf6 {[%clk 0:00:20.5]} 34. Rh2 {[%clk 0:00:07.2]} 34...
Qc1+ {[%clk 0:00:18]} 35. Kf2 {[%clk 0:00:07.6]} 35... Qg5 {[%clk 0:00:19.4]}
36. Bc8 {[%clk 0:00:04.7]} 36... Rf8 {[%clk 0:00:15.5]} 37. Kf1 {[%clk
0:00:04.7]} 37... Ng8 {[%clk 0:00:13.5]} 38. Be6 {[%clk 0:00:04.9]} 38... Nf6
{[%clk 0:00:14.7]} 39. Qh4 {[%clk 0:00:04.7]} 39... Qc1+ {[%clk 0:00:15.2]} 40.
Kf2 {[%clk 0:00:06.4]} 40... Qc3 {[%clk 0:00:12.3]} 41. Rh1 {[%clk 0:00:03.3]}
41... h5 {[%clk 0:00:08.6]} 42. Kf1 {[%clk 0:00:03.4]} 42... Qc1+ {[%clk
0:00:09.2]} 43. Qe1 {[%clk 0:00:04.5]} 43... Qg5 {[%clk 0:00:10.3]} 44. Rf2
{[%clk 0:00:05.6]} 44... Nh7 {[%clk 0:00:09.3]} 45. Qe2 {[%clk 0:00:06.7]} 45...
Qc1+ {[%clk 0:00:09.7]} 46. Qe1 {[%clk 0:00:08.2]} 46... Qxc4+ {[%clk
0:00:11.4]} 47. Kg1 {[%clk 0:00:09.4]} 47... Qf4 {[%clk 0:00:12.2]} 48. Rxh5
{[%clk 0:00:10.5]} 48... Rg5 {[%clk 0:00:11.8]} 49. Rh3 {[%clk 0:00:10.9]} 49...
Kg7 {[%clk 0:00:12.4]} 50. Qc3+ {[%clk 0:00:11.8]} 50... Nf6 {[%clk 0:00:13.6]}
51. Re2 {[%clk 0:00:11.2]} 51... Qxa4 {[%clk 0:00:14.2]} 52. Kf2 {[%clk
0:00:12.5]} 52... Qb4 {[%clk 0:00:14]} 53. Qxc7+ {[%clk 0:00:13.1]} 53... Kg6
{[%clk 0:00:13.8]} 54. Qc2+ {[%clk 0:00:11.2]} 54... Kg7 {[%clk 0:00:15.3]} 55.
Qc7+ {[%clk 0:00:11.2]} 55... Kg6 {[%clk 0:00:16.6]} 56. Qc2+ {[%clk 0:00:07.5]}
56... Kg7 {[%clk 0:00:18]} 57. Qc7+ {[%clk 0:00:08.4]} 57... Kg6 {[%clk
0:00:19.4]} 58. Qc2+ {[%clk 0:00:09.3]} 58... Kg7 {[%clk 0:00:19.9]} 59. Qc7+
{[%clk 0:00:10.3]} 59... Kg6 {[%clk 0:00:19.3]} 60. Qc2+ {[%clk 0:00:11]} 60...
Kg7 {[%clk 0:00:20.6]} 61. Qc7+ {[%clk 0:00:11.6]} 1/2-1/2

[Event "*** Titled Tuesday 3|2 Blitz"]
[Site "Chess.com"]
[Date "2016.08.02"]
[Round "7"]
[White "jcibarra"]
[Black "pedromartinez91"]
[Result "1-0"]
[WhiteElo "2650"]
[BlackElo "2296"]
[TimeControl "180+2"]
[EndTime "12:36:28 PDT"]
[Termination "jcibarra won by resignation"]

1. e4 {[%clk 0:03:01.2]} 1... c5 {[%clk 0:03:00.5]} 2. Nf3 {[%clk 0:03:01.7]}
2... Nc6 {[%clk 0:03:01.4]} 3. d4 {[%clk 0:03:02.6]} 3... cxd4 {[%clk
0:03:02.3]} 4. Nxd4 {[%clk 0:03:04.3]} 4... d5 {[%clk 0:03:03.4]} 5. Bb5 {[%clk
0:03:00.5]} 5... dxe4 {[%clk 0:03:03.7]} 6. Nxc6 {[%clk 0:02:55.1]} 6... Qxd1+
{[%clk 0:03:03.7]} 7. Kxd1 {[%clk 0:02:56.1]} 7... a6 {[%clk 0:03:04.9]} 8. Ba4
{[%clk 0:02:56.1]} 8... Bd7 {[%clk 0:03:05.6]} 9. Nc3 {[%clk 0:02:56.2]} 9...
Bxc6 {[%clk 0:03:06.6]} 10. Bxc6+ {[%clk 0:02:56.4]} 10... bxc6 {[%clk
0:03:08.2]} 11. Nxe4 {[%clk 0:02:57.5]} 11... f5 {[%clk 0:03:09.4]} 12. Nd2
{[%clk 0:02:43.2]} 12... g6 {[%clk 0:03:08.8]} 13. Nc4 {[%clk 0:02:42.1]} 13...
Bg7 {[%clk 0:03:07.2]} 14. Bf4 {[%clk 0:02:37.1]} 14... O-O-O+ {[%clk
0:02:56.9]} 15. Ke2 {[%clk 0:02:36.7]} 15... Rd4 {[%clk 0:02:56.8]} 16. Nb6+
{[%clk 0:02:30.4]} 16... Kb7 {[%clk 0:02:48.7]} 17. Be3 {[%clk 0:02:31.1]} 17...
Rb4 {[%clk 0:02:34.4]} 18. Nd7 {[%clk 0:02:30]} 18... Rxb2 {[%clk 0:02:30.1]}
19. Nc5+ {[%clk 0:02:04.8]} 19... Kc8 {[%clk 0:02:23.8]} 20. Rab1 {[%clk
0:02:04.8]} 20... Rxc2+ {[%clk 0:02:20.6]} 21. Kd3 {[%clk 0:02:05]} 21... Rxa2
{[%clk 0:02:15.5]} 22. Rb6 {[%clk 0:02:04.1]} 22... Kc7 {[%clk 0:01:50.1]} 23.
Rb7+ {[%clk 0:01:55.5]} 23... Kc8 {[%clk 0:01:30.1]} 24. Rhb1 {[%clk 0:01:55.6]}
24... Be5 {[%clk 0:01:22]} 25. Ra7 {[%clk 0:01:31.6]} 25... Rb2 {[%clk
0:01:20.1]} 26. Rxb2 {[%clk 0:00:36.7]} 26... Bxb2 {[%clk 0:01:20.5]} 27. Bf4
{[%clk 0:00:25.3]} 27... e5 {[%clk 0:01:16.7]} 28. Bg5 {[%clk 0:00:26.5]} 28...
Bd4 {[%clk 0:01:05.3]} 29. Kc4 {[%clk 0:00:26.6]} 29... h6 {[%clk 0:01:04]} 30.
Ra8+ {[%clk 0:00:27.4]} 30... Kc7 {[%clk 0:01:04.5]} 31. Bf6 {[%clk 0:00:17.2]}
31... Nxf6 {[%clk 0:00:59.2]} 32. Rxh8 {[%clk 0:00:18.8]} 32... h5 {[%clk
0:00:45.3]} 33. Rf8 {[%clk 0:00:19.2]} 33... Ng4 {[%clk 0:00:37.3]} 34. Rf7+
{[%clk 0:00:19.8]} 34... Kc8 {[%clk 0:00:36.7]} 35. Rf8+ {[%clk 0:00:17]} 35...
Kc7 {[%clk 0:00:36.1]} 36. Ne6+ {[%clk 0:00:18.6]} 36... Kd6 {[%clk 0:00:32.7]}
37. Nxd4 {[%clk 0:00:20.2]} 37... exd4 {[%clk 0:00:33.8]} 38. f3 {[%clk
0:00:21.8]} 38... Ne3+ {[%clk 0:00:28.3]} 39. Kxd4 {[%clk 0:00:23.2]} 39... Nxg2
{[%clk 0:00:29.9]} 40. Rf6+ {[%clk 0:00:24.6]} 40... Ke7 {[%clk 0:00:28.2]} 41.
Rxg6 {[%clk 0:00:25.2]} 41... Nh4 {[%clk 0:00:29.2]} 42. Rg3 {[%clk 0:00:19.1]}
42... Kf6 {[%clk 0:00:29.4]} 43. f4 {[%clk 0:00:17.6]} 43... Ng6 {[%clk
0:00:27.5]} 44. Ke3 {[%clk 0:00:18.6]} 44... Ne7 {[%clk 0:00:25.6]} 45. Rg1
{[%clk 0:00:19.1]} 45... Nd5+ {[%clk 0:00:26.5]} 46. Kf3 {[%clk 0:00:20.7]}
46... Nb4 {[%clk 0:00:19.3]} 47. Rc1 {[%clk 0:00:21]} 47... Ke6 {[%clk
0:00:18.2]} 48. Rc4 {[%clk 0:00:22.3]} 48... a5 {[%clk 0:00:18.5]} 49. Rc5
{[%clk 0:00:23.9]} 49... a4 {[%clk 0:00:17.2]} 50. Ra5 {[%clk 0:00:25.4]} 50...
c5 {[%clk 0:00:15.3]} 51. Rxc5 {[%clk 0:00:25.6]} 51... a3 {[%clk 0:00:14.9]}
52. Ra5 {[%clk 0:00:25.8]} 52... a2 {[%clk 0:00:16]} 53. Ke2 {[%clk 0:00:24.4]}
53... Kd6 {[%clk 0:00:14.5]} 54. Kd2 {[%clk 0:00:25.1]} 54... Kc6 {[%clk
0:00:16.1]} 55. Kc3 {[%clk 0:00:25.6]} 55... Nd5+ {[%clk 0:00:16.6]} 56. Kd4
{[%clk 0:00:26.4]} 56... Nxf4 {[%clk 0:00:14.4]} 57. Rxa2 {[%clk 0:00:27.9]}
57... Kd6 {[%clk 0:00:15.6]} 58. Ra6+ {[%clk 0:00:29]} 58... Ke7 {[%clk
0:00:16.8]} 59. Ke5 {[%clk 0:00:30.4]} 59... Ne2 {[%clk 0:00:06.5]} 60. Ra7+
{[%clk 0:00:31.5]} 60... Kd8 {[%clk 0:00:06.9]} 61. Kxf5 {[%clk 0:00:32.6]}
61... h4 {[%clk 0:00:08.2]} 62. Kg4 {[%clk 0:00:32.8]} 1-0